bitfinex-derivatives/quotes_ETHF0:USTF0_20251005
["timestamp","ask_amount","ask_price","bid_price","bid_amount"]
[1759631291651,0.3228,4487.5,4487.4,1.78402246]
[1759631292155,0.3228,4487.8,4487.7,0.4215]
[1759631292456,0.3228,4487.8,4487.7,4.99182246]
[1759631292756,0.3228,4487.8,4487.7,5.39271246]
[1759631293361,0.02378618,4487.9,4487.8,0.6617]
[1759631293560,0.34658618,4487.9,4487.8,0.6617]
[1759631293859,0.57288618,4487.9,4487.8,0.6617]
[1759631294259,0.78498618,4487.9,4487.8,1.28537231]
[1759631294559,0.78498618,4487.9,4487.8,1.51237231]
[1759631299160,0.3228,4487.8,4487.7,4.68076231]
[1759631299460,0.7612,4487.8,4487.7,5.12106231]
[1759631299860,0.7612,4487.8,4487.7,4.89406231]
[1759631300159,0.7612,4487.8,4487.7,5.12106231]
[1759631300862,0.7612,4487.8,4487.7,4.72017231]
[1759631301455,0.7612,4487.8,4487.7,1.51237231]
[1759631302255,0.7612,4487.8,4487.7,4.92837231]
[1759631302457,0.02378618,4487.9,4487.8,0.40088]
[1759631302658,0.2263,4488.9,4488.8,0.84918]
[1759631302862,3.2078,4489.1,4488.8,2.12135231]
[1759631303062,0.355,4489.0,4488.9,0.6617]
[1759631303252,0.6778,4489.0,4488.9,1.62017925]
[1759631303562,0.8899,4489.0,4488.9,1.62017925]
[1759631303763,0.89179825,4489.0,4488.9,1.62017925]
[1759631304163,0.89179825,4489.0,4488.9,0.4215]
[1759631304359,0.89179825,4489.0,4488.9,1.6200154]
[1759631306273,0.89179825,4489.0,4488.9,0.4215]
[1759631307654,3.4341,4489.8,4489.7,0.2133]
[1759631307858,3.4341,4489.8,4489.6,0.82607038]
[1759631307859,3.6462,4489.8,4489.6,0.82607038]
[1759631308158,3.6462,4489.8,4489.7,1.4127705]
[1759631308355,0.7612,4489.8,4489.7,4.8287705]
[1759631308557,0.76294751,4489.8,4489.7,1.6209705]
[1759631308757,0.76294751,4489.8,4489.7,0.82221]
[1759631308958,0.32454751,4489.8,4489.7,4.27021]
[1759631309262,0.76294751,4489.8,4489.7,3.09094503]
[1759631310365,0.76294751,4489.8,4489.7,1.07207231]
[1759631310668,0.76294751,4489.8,4489.7,1.49357231]
[1759631313376,0.76294751,4489.8,4489.7,4.70137231]
[1759631313872,0.76294751,4489.8,4489.7,4.94177231]
[1759631314761,0.32454751,4489.8,4489.7,4.94177231]
[1759631314955,0.53724751,4489.8,4489.7,4.94177231]
[1759631315159,0.75704751,4489.8,4489.7,4.70137231]
[1759631315365,0.32454751,4489.8,4489.7,4.92837231]
[1759631315564,0.32454751,4489.8,4489.7,5.16877231]
[1759631315766,0.75704751,4489.8,4489.7,1.51237231]
[1759631316464,0.53724751,4489.8,4489.7,5.17737231]
[1759631317366,0.32454751,4489.8,4489.7,5.17737231]
[1759631318460,0.53724751,4489.8,4489.7,5.17737231]
[1759631318658,0.53724751,4489.8,4489.7,1.96957231]
[1759631319968,0.32454751,4489.8,4489.7,1.96957231]
[1759631320163,0.32454751,4489.8,4489.7,5.17737231]
[1759631320367,0.53724751,4489.8,4489.7,5.17737231]
[1759631323068,0.32454751,4489.8,4489.7,5.17737231]
[1759631325266,0.53724751,4489.8,4489.7,5.17737231]
[1759631325872,0.00174751,4489.8,4489.7,5.17737231]
[1759631326066,0.32204751,4489.8,4489.7,5.77493968]
[1759631326262,0.32204751,4489.8,4489.7,5.17737231]
[1759631326870,0.00174751,4489.8,4489.7,5.17737231]
[1759631327072,0.32204751,4489.8,4489.7,5.17737231]
[1759631327770,0.00174751,4489.8,4489.7,5.17737231]
[1759631328471,0.00174751,4489.8,4489.7,6.37403503]
[1759631330472,0.00174751,4489.8,4489.7,5.17737231]
[1759631330872,0.32204751,4489.8,4489.7,5.17737231]
[1759631331073,0.00174751,4489.8,4489.7,5.17737231]
[1759631334680,0.00174751,4489.8,4489.7,6.77608888]
[1759631336377,0.00174751,4489.8,4489.7,5.17737231]
[1759631337377,0.32204751,4489.8,4489.7,5.17737231]
[1759631338471,0.53474751,4489.8,4489.7,4.93597231]
[1759631338681,0.75454751,4489.8,4489.7,4.93597231]
[1759631338881,0.75454751,4489.8,4489.7,5.17637231]
[1759631339379,0.75454751,4489.8,4489.7,4.95037231]
[1759631339684,0.75454751,4489.8,4489.7,3.6379]
[1759631339879,0.75454751,4489.8,4489.7,1.51137231]
[1759631340881,0.75454751,4489.8,4489.7,4.93597231]
[1759631341180,0.75454751,4489.8,4489.7,5.17637231]
[1759631341678,0.75454751,4489.8,4489.7,4.93597231]
[1759631343786,0.75454751,4489.8,4489.7,4.70997231]
[1759631343986,0.75454751,4489.8,4489.7,4.93597231]
[1759631344385,0.75454751,4489.8,4489.7,4.70997231]
[1759631344587,0.75454751,4489.8,4489.7,4.93597231]
[1759631345387,0.75454751,4489.8,4489.7,4.71917231]
[1759631345888,0.75454751,4489.8,4489.7,4.93807231]
[1759631346080,0.75454751,4489.8,4489.7,5.17847231]
[1759631346991,0.32204751,4489.8,4489.7,5.17847231]
[1759631350695,0.53414751,4489.8,4489.7,5.17847231]
[1759631350895,0.75904751,4489.8,4489.7,5.17847231]
[1759631351290,0.00174751,4489.8,4489.7,5.17847231]
[1759631351989,0.3387,4490.9,4490.5,0.2076]
[1759631352193,0.5508,4490.9,4490.8,1.49857231]
[1759631352395,0.5508,4490.9,4490.8,1.96317231]
[1759631353089,0.77736771,4490.9,4490.8,1.72702428]
[1759631354191,0.77736771,4490.9,4490.8,1.32850004]
[1759631355392,0.77736771,4490.9,4490.8,1.54740004]
[1759631359599,0.77736771,4490.9,4490.8,0.65495197]
[1759631359800,0.77736771,4490.9,4490.8,1.54740004]
[1759631360793,0.77736771,4490.9,4490.8,1.78600004]
[1759631361300,0.34036771,4490.9,4490.8,1.78600004]
[1759631362399,0.55246771,4490.9,4490.8,1.78600004]
[1759631362696,1.17796771,4490.9,4490.8,1.54740004]
[1759631363099,0.77736771,4490.9,4490.8,1.54740004]
[1759631363301,0.34036771,4490.9,4490.8,1.78600004]
[1759631363695,0.55246771,4490.9,4490.8,1.78600004]
[1759631366096,0.00166771,4490.9,4490.8,1.96271707]
[1759631366401,0.00166771,4490.9,4490.8,3.16079615]
[1759631367097,0.34036771,4490.9,4490.8,2.98407912]
[1759631369008,0.34036771,4490.9,4490.8,1.78600004]
[1759631369696,0.00166771,4490.9,4490.8,1.78600004]
[1759631370296,0.00166771,4490.9,4490.8,2.98378231]
[1759631371002,0.00166771,4490.9,4490.8,1.78600004]
[1759631376802,0.00166771,4490.9,4490.8,2.67844811]
[1759631380108,0.9032,4492.0,4491.9,0.4284]
[1759631380301,0.682,4492.0,4491.9,1.78454807]
[1759631380608,0.9068,4492.0,4491.9,1.54584807]
[1759631381104,0.90860838,4492.0,4491.9,1.54584807]
[1759631381708,0.90860838,4492.0,4491.9,1.78454807]
[1759631385211,0.90860838,4492.0,4491.9,2.98073829]
[1759631385914,0.68380838,4492.0,4491.9,2.98073829]
[1759631386406,0.90860838,4492.0,4491.9,2.74203829]
[1759631388009,0.90860838,4492.0,4491.9,2.98073829]
[1759631392215,0.90860838,4492.0,4491.9,2.74203829]
[1759631392515,0.90860838,4492.0,4491.9,2.52333829]
[1759631392711,0.68380838,4492.0,4491.9,2.98073829]
[1759631393111,0.32280838,4492.0,4491.9,1.78454807]
[1759631395115,0.00180838,4492.0,4491.9,1.78454807]
[1759631395516,0.321,4492.6,4492.5,0.6671]
[1759631395709,0.022,4492.9,4492.8,0.6671]
[1759631395908,0.022,4492.9,4492.8,1.78554807]
[1759631396410,0.02385601,4492.9,4492.8,3.55665164]
[1759631396612,0.57115601,4492.9,4492.8,3.33065164]
[1759631396916,0.57115601,4492.9,4492.8,1.32084807]
[1759631396917,0.79595601,4492.9,4492.8,1.32084807]
[1759631397108,0.79595601,4492.9,4492.8,1.54684807]
[1759631397308,0.321,4492.8,4492.7,3.2078]
[1759631397513,0.7721,4492.8,4492.7,4.30994807]
[1759631397815,0.7721,4492.8,4492.7,4.32624807]
[1759631398009,0.02385601,4492.9,4492.7,4.32624807]
[1759631398010,0.02385601,4492.9,4492.8,0.2387]
[1759631398213,0.47495601,4492.9,4492.8,1.62230921]
[1759631398611,0.79595601,4492.9,4492.8,1.62230921]
[1759631399208,0.79595601,4492.9,4492.8,2.51475728]
[1759631399516,0.02385601,4492.9,4492.8,1.55954807]
[1759631399914,0.361,4494.0,4493.9,0.6671]
[1759631400213,0.321,4494.0,4493.9,6.18644426]
[1759631400416,0.321,4494.0,4493.9,6.18744426]
[1759631400611,0.321,4494.0,4493.9,4.99434807]
[1759631400911,0.32290612,4494.0,4493.9,4.1019]
[1759631401116,0.68390612,4494.0,4493.9,4.99434807]
[1759631401312,0.68390612,4494.0,4493.9,6.18628253]
[1759631401710,0.68390612,4494.0,4493.9,6.18528253]
[1759631402113,0.00190612,4494.0,4493.9,7.0777306]
[1759631402314,0.00190612,4494.0,4493.9,5.88579614]
[1759631402814,0.321,4494.9,4494.8,1.08276]
[1759631403017,0.5486,4494.9,4494.8,5.00974807]
[1759631403212,0.321,4494.9,4494.8,5.80256557]
[1759631403519,0.8851,4495.5,4495.4,0.2199]
[1759631403718,0.88749782,4495.5,4495.4,1.34182363]
[1759631404214,5.88749782,4495.5,4495.4,0.00247556]
[1759631404716,5.88749782,4495.5,4495.4,0.22237556]
[1759631404717,0.88749782,4495.5,4495.4,0.22237556]
[1759631404912,0.88749782,4495.5,4495.4,1.11482363]
[1759631405122,5.88749782,4495.5,4495.4,0.00247556]
[1759631405911,0.88749782,4495.5,4495.4,0.00247556]
[1759631406112,0.88749782,4495.5,4495.4,0.22237556]
[1759631406314,0.88749782,4495.5,4495.4,0.44617556]
[1759631406922,3.2078,4495.8,4495.7,0.40017]
[1759631407116,0.3158,4496.1,4496.0,1.57494807]
[1759631407317,0.3158,4496.1,4496.0,5.00974807]
[1759631407511,0.3158,4496.4,4496.0,3.8785]
[1759631407710,0.5434,4496.2,4496.1,0.4437]
[1759631407918,0.54516552,4496.2,4496.1,0.4437]
[1759631408119,0.75216552,4496.2,4496.1,0.2238]
[1759631408325,0.7504,4496.1,4496.0,3.8785]
[1759631408918,0.7504,4496.1,4496.0,4.10024807]
[1759631409125,5.7504,4496.1,4496.0,3.2078]
[1759631409318,1.27959,4495.5,4495.4,0.00247556]
[1759631409526,0.8794,4495.5,4495.4,3.43017556]
[1759631409715,0.8794,4495.5,4495.4,3.65397556]
[1759631410215,0.8794,4495.5,4495.4,3.21027556]
[1759631412119,0.8794,4495.5,4494.9,3.2078]
[1759631412120,0.8794,4495.0,4494.9,3.2078]
[1759631412319,0.7504,4494.4,4494.3,4.32014807]
[1759631412514,0.7504,4494.4,4494.3,3.4277]
[1759631412722,0.7504,4494.4,4494.3,3.4348]
[1759631412918,0.7504,4494.4,4494.3,3.6547]
[1759631413224,0.7504,4494.4,4494.3,3.43739771]
[1759631413618,0.7504,4494.4,4494.3,3.43029771]
[1759631413816,0.5434,4494.4,4494.3,5.01234578]
[1759631414027,0.7504,4494.4,4494.3,3.88109771]
[1759631414214,0.3158,4494.4,4494.3,5.18903495]
[1759631414421,0.129,4495.5,4494.9,0.6825]
[1759631414722,0.96379,4495.5,4495.1,1.06913724]
[1759631414914,0.4346,4495.2,4495.1,1.28903724]
[1759631415220,0.7504,4495.2,4495.1,1.75163724]
[1759631415821,0.7504,4495.2,4495.1,1.51283724]
[1759631416331,0.3158,4495.2,4495.1,1.75163724]
[1759631417028,0.5434,4495.2,4495.1,1.75163724]
[1759631417223,0.5434,4495.2,4495.1,1.51283724]
[1759631417530,0.3158,4495.2,4495.1,1.75163724]
[1759631417716,0.5434,4495.2,4495.1,1.75163724]
[1759631418624,0.5434,4495.2,4495.1,1.51283724]
[1759631418821,0.7504,4495.2,4494.5,3.2078]
[1759631419022,0.129,4495.5,4495.1,1.06913724]
[1759631419230,0.129,4495.5,4495.3,0.2238]
[1759631419231,0.5434,4495.4,4495.3,0.2238]
[1759631419426,0.5434,4495.4,4495.3,0.6825]
[1759631420627,0.3158,4495.4,4495.3,0.6825]
[1759631420926,0.5434,4495.9,4495.8,0.84387]
[1759631421131,0.3158,4495.9,4495.8,5.58660724]
[1759631421428,0.54516552,4496.2,4496.1,1.08264]
[1759631421628,0.75216552,4496.2,4496.1,1.07084]
[1759631422743,0.75216552,4496.2,4496.1,0.62714]
[1759631423539,0.75216552,4496.2,4496.1,0.84704]
[1759631423740,0.75216552,4496.2,4496.1,1.07084]
[1759631423941,0.00176552,4496.2,4496.1,1.30964]
[1759631424343,0.54516552,4496.2,4496.1,1.30964]
[1759631424540,0.75216552,4496.2,4496.1,0.62714]
[1759631424741,0.75216552,4496.2,4496.1,1.07084]
[1759631424943,0.75216552,4496.2,4496.1,0.4437]
[1759631425138,0.75216552,4496.2,4496.1,0.6707]
[1759631425341,0.31756552,4496.2,4496.1,0.9095]
[1759631425931,0.75216552,4496.2,4496.1,0.6707]
[1759631427532,0.75216552,4496.2,4496.1,0.4469]
[1759631427843,0.3158,4495.9,4495.8,3.60796]
[1759631428141,0.7504,4495.9,4495.8,3.82786]
[1759631428330,0.7504,4495.9,4495.8,4.05386]
[1759631428530,0.7504,4495.9,4495.8,3.82786]
[1759631428736,0.7504,4495.9,4495.8,3.2078]
[1759631428942,0.7504,4495.9,4495.8,3.4338]
[1759631429745,0.7504,4495.9,4495.8,3.2078]
[1759631429941,0.40017,4495.8,4495.6,0.59392097]
[1759631430235,1.15058,4495.6,4495.5,0.59392097]
[1759631430639,1.1438,4495.4,4495.3,0.59392097]
[1759631430836,1.1438,4495.4,4495.0,0.7928175]
[1759631430837,0.7436,4495.1,4495.0,0.59392097]
[1759631431141,1.26724,4495.0,4494.9,0.81992097]
[1759631431331,1.26724,4495.0,4494.8,0.59392097]
[1759631431332,0.3271,4494.9,4494.8,0.59392097]
[1759631431533,1.14385,4494.8,4494.7,3.2078]
[1759631432741,6.14385,4494.8,4494.7,3.2078]
[1759631433534,1.14385,4494.8,4494.7,3.2078]
[1759631433741,1.14385,4494.8,4494.7,3.4144]
[1759631433946,0.3271,4494.8,4494.7,4.27446]
[1759631434143,0.3082,4495.2,4495.1,0.2066]
[1759631434347,0.3082,4495.2,4495.1,0.6664]
[1759631435040,0.5304,4495.2,4495.1,0.4276]
[1759631435539,0.3082,4495.2,4495.1,0.8934]
[1759631435942,0.7429,4495.2,4495.1,0.6546]
[1759631436143,0.7429,4495.2,4495.1,0.8934]
[1759631436347,0.5304,4495.2,4495.1,1.48732097]
[1759631436544,0.3082,4495.2,4495.1,1.48732097]
[1759631436746,1.14312,4495.2,4495.1,1.24852097]
[1759631436943,0.5304,4495.2,4495.1,1.48732097]
[1759631437144,0.3082,4495.2,4495.1,1.48732097]
[1759631437343,0.52915,4496.0,4495.5,0.40019]
[1759631437545,1.27205,4496.0,4495.9,0.2066]
[1759631438140,0.8719,4496.0,4495.9,0.2066]
[1759631438340,0.8719,4496.0,4495.9,0.6664]
[1759631439049,0.6594,4496.0,4495.9,3.8742]
[1759631440147,0.6594,4496.0,4495.9,3.6354]
[1759631440742,0.8719,4496.0,4495.9,3.6354]
[1759631441143,0.8719,4496.0,4495.9,3.8614]
[1759631441448,0.8719,4496.0,4495.9,4.45724058]
[1759631441648,0.4372,4496.0,4495.9,4.1002]
[1759631442053,0.00176552,4496.2,4496.1,0.6664]
[1759631442354,0.00176552,4496.2,4496.1,1.48817113]
[1759631442952,0.00176552,4496.2,4496.1,0.8924]
[1759631443751,0.30996552,4496.2,4496.1,0.8924]
[1759631444150,3.2078,4496.7,4496.1,0.6536]
[1759631444452,1.59469738,4499.2,4497.0,0.1203]
[1759631444650,1.66418581,4499.4,4499.1,3.56119558]
[1759631444651,0.3082,4499.4,4499.1,3.56119558]
[1759631444956,0.1355,4499.5,4499.3,3.56119558]
[1759631445253,0.1355,4500.0,4499.4,46.44385]
[1759631445550,0.037,4504.8,4501.0,9.99262]
[1759631445757,9.98166,4506.1,4502.8,3.56119558]
[1759631445956,0.1355,4504.0,4503.2,0.78945531]
[1759631446149,0.13732799,4504.0,4503.7,0.39946]
[1759631446349,0.13732799,4504.0,4503.8,0.9187015]
[1759631446555,0.1355,4504.5,4504.0,0.39944]
[1759631446751,0.1355,4504.5,4504.2,0.98736777]
[1759631446953,0.3082,4504.4,4504.3,4.45630666]
[1759631447251,0.16388773,4504.4,4504.3,0.64634454]
[1759631447553,0.16388773,4504.4,4503.2,0.00239778]
[1759631447554,0.1355,4503.5,4503.4,3.2078]
[1759631447852,0.1355,4503.5,4502.5,0.39957]
[1759631447853,0.1355,4503.0,4502.5,0.39957]
[1759631448162,0.1355,4503.0,4501.5,3.56119558]
[1759631448163,0.1355,4502.0,4501.6,0.58794777]
[1759631448451,0.1355,4501.5,4501.3,3.2078]
[1759631448649,0.1355,4501.5,4501.3,3.20982601]
[1759631448848,0.1355,4501.5,4501.4,0.246]
[1759631449152,0.1355,4502.0,4501.4,5.246]
[1759631449351,0.1355,4502.5,4501.9,3.2078]
[1759631449550,0.1355,4502.5,4502.4,3.60738]
[1759631449750,0.1355,4502.5,4502.4,3.2078]
[1759631449955,0.1355,4502.5,4502.4,3.4538]
[1759631450158,0.1355,4503.5,4502.9,0.39954]
[1759631450357,0.1355,4503.5,4503.4,0.39949]
[1759631450661,0.1355,4503.0,4502.7,3.56119558]
[1759631450857,0.1355,4503.5,4503.4,0.39949]
[1759631451056,0.1355,4504.5,4503.5,9.98721]
[1759631451355,0.36156186,4504.5,4504.4,3.2078]
[1759631451559,0.36156186,4504.5,4504.4,3.4538]
[1759631451758,0.36156186,4504.5,4503.7,3.2078]
[1759631451952,0.1355,4504.0,4503.7,3.2078]
[1759631452156,0.3082,4503.9,4503.7,3.2078]
[1759631452363,0.1355,4503.0,4502.8,0.39955]
[1759631452553,0.1355,4503.0,4502.9,3.4538]
[1759631452756,0.4437,4503.0,4502.9,3.2078]
[1759631453054,0.4437,4503.0,4502.9,3.4538]
[1759631453261,0.1355,4503.5,4502.9,8.4538]
[1759631453460,0.4437,4503.0,4502.9,0.246]
[1759631453761,0.4437,4503.0,4502.9,3.4538]
[1759631453958,0.13776159,4504.0,4502.9,3.4538]
[1759631453959,0.44596159,4504.0,4503.9,0.39945]
[1759631454161,0.44596159,4504.0,4503.9,3.85325]
[1759631454362,0.1355,4505.0,4503.9,8.4538]
[1759631454569,0.1355,4505.5,4504.9,4.18711593]
[1759631454765,0.4437,4505.5,4505.4,3.2078]
[1759631455956,0.44548501,4505.5,4505.4,3.21028082]
[1759631456156,5.44548501,4505.5,4505.1,0.57995593]
[1759631456454,5.44548501,4505.5,4504.9,3.2078]
[1759631456455,0.4437,4505.0,4504.9,3.2078]
[1759631457261,5.4437,4505.0,4504.9,3.12741674]
[1759631457559,5.4437,4505.0,4503.1,0.77327457]
[1759631457560,0.4437,4504.0,4503.9,3.2078]
[1759631457761,0.4437,4504.0,4503.9,3.12936396]
[1759631457962,0.3082,4503.4,4503.0,3.2078]
[1759631458159,0.1355,4503.0,4502.5,3.2078]
[1759631458458,0.3082,4502.4,4502.1,0.246]
[1759631458660,0.3082,4502.9,4502.1,0.00276086]
[1759631458865,0.1355,4502.5,4502.1,0.00276086]
[1759631459164,0.3082,4503.4,4502.5,0.39956]
[1759631459359,0.3082,4503.4,4502.5,0.246]
[1759631459559,3.3433,4503.5,4503.0,0.39952]
[1759631459953,0.3082,4503.4,4502.8,0.246]
[1759631460158,0.1355,4503.5,4502.8,0.246]
[1759631460360,0.3082,4503.4,4502.8,0.246]
[1759631460664,3.3433,4504.0,4503.6,0.39947]
[1759631460961,3.3433,4504.0,4503.8,0.39945]
[1759631461161,3.2078,4505.3,4504.5,0.39939]
[1759631461363,3.2078,4505.3,4504.5,0.246]
[1759631461566,0.3082,4504.9,4503.9,3.2078]
[1759631461762,0.3082,4504.9,4503.3,0.57995593]
[1759631461763,0.3082,4503.9,4503.5,0.245]
[1759631462064,0.3082,4503.4,4503.3,3.2078]
[1759631462256,0.3082,4503.4,4502.5,0.245]
[1759631462457,0.3082,4502.4,4502.2,3.2078]
[1759631462657,0.1355,4502.5,4501.7,0.245]
[1759631462858,0.1355,4503.0,4502.3,3.2078]
[1759631463062,0.022,4502.9,4502.7,0.58135]
[1759631463267,0.3426,4502.9,4502.8,0.245]
[1759631463456,0.022,4502.9,4502.8,3.6346]
[1759631463658,3.5284,4504.4,4503.5,0.39948]
[1759631463859,0.1298,4504.5,4503.5,0.245]
[1759631463860,3.2078,4503.9,4503.5,0.245]
[1759631464057,0.3206,4503.8,4503.5,0.245]
[1759631464258,3.5284,4504.4,4503.6,0.58127]
[1759631464469,3.5284,4504.4,4504.0,0.1818]
[1759631464470,3.2078,4504.4,4504.0,0.1818]
[1759631464759,3.2078,4505.3,4504.6,0.1818]
[1759631464954,3.2078,4505.3,4504.1,0.57995593]
[1759631465158,0.3206,4505.2,4504.5,0.39939]
[1759631465358,0.39927,4505.9,4504.9,0.39935]
[1759631465359,3.2078,4505.9,4504.9,0.39935]
[1759631465565,3.2078,4505.9,4505.0,0.91596262]
[1759631465566,0.3206,4505.4,4505.0,0.91596262]
[1759631465764,3.2078,4505.9,4505.0,0.245]
[1759631465961,0.3206,4505.2,4505.0,0.245]
[1759631466161,0.3206,4505.2,4504.8,0.245]
[1759631466360,0.4504,4505.0,4504.9,1.4449211]
[1759631466559,0.4504,4505.0,4504.9,0.67164653]
[1759631467562,3.2078,4505.3,4505.0,0.39935]
[1759631467563,3.5284,4505.3,4505.0,0.39935]
[1759631467761,0.00178501,4505.5,4505.3,0.1818]
[1759631467966,0.00178501,4505.5,4505.4,1.4449211]
[1759631468368,0.00178501,4505.5,4505.4,2.32786723]
[1759631468558,0.00178501,4505.5,4505.4,1.14368427]
[1759631468761,0.45218501,4505.5,4505.4,0.96188427]
[1759631468969,0.45218501,4505.5,4505.4,1.20688427]
[1759631469164,5.45218501,4505.5,4505.4,1.43962226]
[1759631469372,5.24678501,4505.5,4505.2,0.3104]
[1759631469565,6.41883459,4517.5,4505.2,0.58213998]
[1759631469867,6.41883459,4517.5,4503.7,1.99549746]
[1759631469868,3.3376,4513.8,4511.5,16.73823558]
[1759631470072,0.1298,4513.8,4513.6,0.39858]
[1759631470268,0.1298,4513.8,4513.7,0.58144407]
[1759631470570,0.3206,4513.7,4513.6,0.39858]
[1759631470767,0.3206,4513.7,4511.8,1.99549746]
[1759631470768,0.3206,4512.7,4511.8,1.99549746]
[1759631470966,0.1298,4512.8,4512.5,0.39868]
[1759631471274,0.026,4513.5,4513.2,3.16222178]
[1759631471469,0.13225255,4513.8,4513.6,0.39858]
[1759631471774,0.13225255,4513.8,4513.7,3.2078]
[1759631472068,0.13225255,4513.8,4513.7,3.78366445]
[1759631472271,7.98735466,4513.8,4513.0,2.8655]
[1759631472471,7.98735466,4513.8,4512.1,0.3104]
[1759631472472,3.2078,4513.3,4512.1,0.3104]
[1759631472669,3.2078,4512.8,4512.1,0.3104]
[1759631472973,2.94140859,4512.7,4512.0,0.1353]
[1759631473178,3.2078,4512.8,4512.0,0.1353]
[1759631473468,3.2078,4512.8,4510.4,0.1353]
[1759631473469,0.4504,4515.2,4513.6,9.96462]
[1759631473667,0.1298,4515.2,4514.5,3.2078]
[1759631473868,0.167,4515.1,4514.5,3.2078]
[1759631474168,0.3206,4515.0,4514.5,3.2078]
[1759631474373,0.32302859,4515.0,4514.5,3.21013027]
[1759631474574,0.24742859,4515.0,4514.5,3.21013027]
[1759631474875,0.3206,4514.9,4514.5,3.21013027]
[1759631475174,0.24582859,4515.0,4514.5,3.21013027]
[1759631475372,0.3206,4514.9,4514.5,3.21013027]
[1759631475576,3.4528,4514.8,4514.5,0.00233027]
[1759631475869,3.4528,4514.8,4514.0,3.2078]
[1759631475870,0.1298,4514.4,4514.0,3.2078]
[1759631476268,0.5656,4514.3,4514.0,3.2078]
[1759631476470,0.3206,4514.2,4514.0,3.2078]
[1759631476666,0.3206,4514.1,4514.0,3.21000956]
[1759631477074,0.1298,4514.4,4514.0,3.60855956]
[1759631477274,0.161,4514.9,4514.6,0.39849]
[1759631477471,0.161,4514.9,4514.0,3.21000956]
[1759631477472,0.161,4514.9,4514.8,3.2078]
[1759631477873,0.00082859,4515.0,4514.8,3.2078]
[1759631478078,0.155,4514.9,4514.8,3.2078]
[1759631478274,0.00082859,4515.0,4514.8,3.2078]
[1759631478476,3.2078,4517.1,4514.9,0.39847]
[1759631478779,2.98156232,4515.9,4515.3,3.2078]
[1759631479175,0.3206,4515.8,4514.8,3.2078]
[1759631479476,0.3206,4515.8,4514.9,0.39847]
[1759631479477,0.1298,4515.2,4514.9,0.39847]
[1759631479973,0.3206,4515.2,4514.8,3.60628]
[1759631480373,0.3206,4515.0,4514.8,3.60628]
[1759631480566,0.3206,4515.0,4514.8,8.60628]
[1759631481168,0.3206,4515.3,4514.8,3.2078]
[1759631481376,0.3206,4514.9,4514.8,3.2078]
[1759631481774,5.0,4514.9,4514.3,3.2078]
[1759631481977,0.3206,4514.9,4514.3,3.2078]
[1759631482176,0.3206,4514.9,4514.0,0.00220956]
[1759631482177,0.3206,4514.9,4514.8,3.2078]
[1759631482374,0.5656,4514.9,4514.8,3.2078]
[1759631482577,0.3206,4515.7,4514.9,0.39847]
[1759631482773,0.3206,4515.7,4514.8,8.2078]
[1759631482969,0.00238192,4515.8,4514.8,8.2078]
[1759631482970,0.3206,4515.5,4514.8,8.2078]
[1759631483380,0.5646,4515.7,4515.5,0.39842]
[1759631483582,0.3206,4515.6,4515.4,3.2078]
[1759631483976,0.5656,4515.5,4515.4,3.2078]
[1759631485082,0.5656,4515.5,4514.0,0.00220956]
[1759631485083,11.64617928,4515.5,4514.3,3.2078]
[1759631485280,6.32557928,4515.5,4514.3,3.2078]
[1759631485581,0.3206,4514.8,4514.3,3.2078]
[1759631485778,3.2078,4514.9,4514.3,3.2078]
[1759631486079,2.89892462,4514.7,4514.3,3.2078]
[1759631486279,3.14292462,4514.8,4514.3,3.2078]
[1759631486479,3.14292462,4514.8,4514.0,0.00220956]
[1759631486480,0.3206,4514.3,4514.0,0.00220956]
[1759631486681,0.244,4514.2,4514.0,0.00220956]
[1759631486981,2.91348999,4514.2,4514.1,0.3104]
[1759631487176,0.3206,4515.6,4514.1,3.2078]
[1759631487383,0.245,4515.5,4514.9,0.3104]
[1759631487577,3.2078,4515.3,4514.6,3.2078]
[1759631487883,3.14851334,4515.2,4514.3,0.3104]
[1759631488374,34.823,4515.1,4514.1,3.2078]
[1759631488574,3.2078,4514.7,4514.1,3.2078]
[1759631488773,0.245,4514.6,4514.1,3.2078]
[1759631488978,0.245,4514.6,4514.0,0.00220956]
[1759631488979,3.50736439,4514.6,4514.0,0.00220956]
[1759631489176,2.94176439,4514.6,4514.0,0.00220956]
[1759631489378,0.245,4514.5,4514.0,0.00220956]
[1759631489583,3.2078,4514.7,4514.1,0.70894]
[1759631489778,3.2078,4514.7,4514.1,0.3104]
[1759631489983,3.2078,4515.7,4514.7,0.39848]
[1759631490286,0.244,4515.6,4514.7,5.0]
[1759631490489,3.2078,4515.2,4514.6,0.3104]
[1759631490785,3.2078,4514.7,4514.0,0.00220956]
[1759631490986,0.8735,4514.6,4514.0,0.00220956]
[1759631491179,3.70602273,4514.6,4514.0,0.00220956]
[1759631491380,3.2078,4514.2,4513.3,3.2078]
[1759631491581,0.6285,4514.0,4513.4,5.0]
[1759631491881,3.2078,4513.7,4512.8,3.2078]
[1759631492187,3.15603621,4513.6,4512.8,3.2078]
[1759631492483,0.6285,4512.9,4512.8,0.0018838]
[1759631492681,0.6285,4512.9,4512.0,0.252]
[1759631492979,0.245,4512.8,4512.5,5.0]
[1759631493182,3.8439,4513.6,4512.6,0.6031]
[1759631493387,3.66817397,4520.8,4513.5,6.00169]
[1759631493388,3.2078,4514.3,4513.5,6.00169]
[1759631493588,3.2078,4514.3,4513.5,0.60480226]
[1759631493784,0.245,4514.2,4513.6,5.0]
[1759631494082,0.244,4514.1,4513.6,5.0]
[1759631494291,0.244,4514.1,4513.7,0.6031]
[1759631494589,6.14314092,4514.3,4513.7,0.6031]
[1759631494779,0.244,4514.2,4513.7,0.6031]
[1759631494976,6.14314092,4514.3,4513.6,5.0]
[1759631495180,3.2078,4514.3,4513.9,0.39855]
[1759631495381,0.2556,4516.2,4514.7,0.6031]
[1759631495382,3.21018192,4515.8,4514.7,0.6031]
[1759631495590,0.245,4515.7,4514.8,3.2078]
[1759631495889,3.17103308,4515.7,4515.1,1.7922]
[1759631496184,3.17103308,4515.7,4515.2,0.64105926]
[1759631496185,0.6361,4515.5,4515.2,0.64105926]